Cogmind - Beta 15 @@@ ROGUE MODE // 2025.08.31 @ 02:05:04 Player: Lymphnodejones Result: Destroyed by Y-45 Defender with Heavy Assault Rifle Performance ------------- Evolutions (2) 1000 Regions Visited (3) 600 Robots Destroyed (31) 155 Value Destroyed (908) 908 Prototype IDs (1) 20 Alien Tech Used (0) 0 Bonus (200) 200 TOTAL SCORE: 2883 Bonus ------- Pacifist 200 Cogmind --------- Core Integrity 0/550 Matter 135/300 Energy 100/100 System Corruption 0% Temperature Cool (9) Movement Core (50) Location -8/Materials Parts ------- > --- POWER (1) -------- (None) > --- PROPULSION (2) --- (None) > --- UTILITY (4) ------ (None) > --- WEAPON (4) ------- Mini Grenade Launcher > --- INVENTORY (5) ---- Light Ion Engine Aluminum Leg Peak State ------------ > --- POWER ------------ Ion Engine > --- PROPULSION ------- Aluminum Leg Aluminum Leg > --- UTILITY ---------- Small Storage Unit Small Matter Pod Seismic Detector Medium Armor Plating > --- WEAPON ----------- Improved Medium Laser Grenade Launcher > --- INVENTORY -------- Light Ion Engine Light Treads Light Treads EM Pulse Gun EM Pulse Gun Rocket Launcher [Rating: 12] Favorites ----------- Power Ion Engine Engine Ion Engine Propulsion Aluminum Leg Treads Light Treads Leg Aluminum Leg Utility Small Storage Unit Device Seismic Detector Storage Small Storage Unit Protection Medium Armor Plating Weapon EM Pulse Gun Energy Gun EM Pulse Gun Launcher Grenade Launcher Build | -11 -10 -9 -8 ------- Run | Yrd Mat Mat Mat Slots Evolved 4 | . . 2 2 Power . | . . . . Propulsion . | . . . . Utility 2 | . . 2 . Weapon 2 | . . . 2 Parts Attached 17 | 6 1 5 5 Power 1 | 1 . . . Engine 1 | 1 . . . Core . | . . . . Reactor . | . . . . Propulsion 4 | 2 . . 2 Treads 2 | . . . 2 Leg 2 | 2 . . . Wheel . | . . . . Hover . | . . . . Flight . | . . . . Utility 4 | 1 1 2 . Device 1 | . . 1 . Storage 2 | 1 1 . . Processor . | . . . . Hackware . | . . . . Protection 1 | . . 1 . Artifact . | . . . . Weapon 8 | 2 . 3 3 Energy Gun 5 | 2 . 1 2 Energy Cannon . | . . . . Ballistic Gun . | . . . . Ballistic Cannon . | . . . . Launcher 3 | . . 2 1 Special Weapon . | . . . . Impact Weapon . | . . . . Slashing Weapon . | . . . . Piercing Weapon . | . . . . Special Melee Weapon . | . . . . Unidentified Prototypes 1 | . . 1 . Parts Lost 13 | . . 5 8 Power 1 | . . . 1 Propulsion 3 | . . 1 2 Utility 4 | . . 3 1 Weapon 5 | . . 1 4 Highest Loss Streak 8 | . . 3 8 To Critical Strikes . | . . . . Average Backups 1 | . 7 7 2 Power . | . 1 1 1 Propulsion . | . 3 2 1 Utility . | . . . . Weapon . | . 2 4 . Tool/Special . | . . . . Unused Backups 6 | . 4 1 1 Power 1 | . . . 1 Propulsion 2 | . 2 . . Utility . | . . . . Weapon 3 | . 2 1 . Tool/Special . | . . . . Average Slot Usage (%) 89 | . 99 89 50 Engine 11 | . 14 11 6 Treads 1 | . . . 12 Leg 21 | . 28 20 . Device 3 | . . 8 . Storage 21 | . 27 19 7 Protection 3 | . . 8 . Energy Gun 20 | . 28 13 17 Launcher 4 | . . 7 7 Peak Build Rating 12 | 6 8 12 11 Average Rating 2 | . 7 9 8 On Entrance 5 | . 6 7 8 Naked Turns 25 | . . . 25 Heaviest Build 25 | 14 15 25 21 Greatest Support 40 | 20 20 20 40 Greatest Overweight (x) 2 | . . 2 2 Average Overweight (x) . | . . . . Largest Inventory Capacity 8 | 8 8 8 8 Average Capacity 5 | 5 8 8 7 Most Carried 8 | 6 8 8 4 Average Carried 1 | . 7 7 2 Final Capacity 8 | 8 8 8 5 Final Carried 8 | 6 8 5 2 Class Distribution -------------------- 98% | Mutant Dominant Class ---------------- Mutant | -10/Materials Mutant | -9/Materials Gunner | -8/Materials Resources | -11 -10 -9 -8 ----------- Run | Yrd Mat Mat Mat Matter Collected 627 | 209 111 86 221 Remotely . | . . . . Salvage Created 895 | . . 284 611 Parts 36 | . . 13 23 Haulers Intercepted 1 | . . . 1 Recyclers Shooed 3 | . . . 3 Parts Field Recycled . | . . . . Retrieved Matter . | . . . . Parts Self-Destructed . | . . . . Prevented . | . . . . Kills | -11 -10 -9 -8 ------- Run | Yrd Mat Mat Mat Combat Hostiles Destroyed 18 | . . 9 9 Melee 1 | . . . 1 Guns 4 | . . 2 2 AOE 13 | . . 7 6 Classes Destroyed 10 | . . 6 4 Worker 2 | . . 1 1 Builder 1 | . . . 1 Tunneler 1 | . . 1 . Hauler 1 | . . . 1 Recycler 4 | . . . 4 Watcher 4 | . . 3 1 Swarmer 3 | . . 3 . Grunt 11 | . . 4 7 Sentry 3 | . . 2 1 Hunter 1 | . . . 1 Best Kill Streak 9 | . . 5 9 Combat Bots Only 5 | . . 4 5 Max Kills in Single Turn 3 | . . 2 3 Gunslinging . | . . . . Exploded 2 | . . 2 2 Melee 1 | . . . 1 Uniques/NPCs Destroyed . | . . . . Combat | -11 -10 -9 -8 -------- Run | Yrd Mat Mat Mat Hostile Shots Fired 143 | . . 43 100 Missed 37 | . . 13 24 Hits 106 | . . 30 76 Projectile 106 | . . 30 76 Critical Strikes 3 | . . . 3 Damage Taken 2069 | . . 826 1243 Core 739 | . . 189 550 Absorbed by Shields . | . . . . Core Remaining (%) 84 | 100 100 52 . Volleys Fired 61 | . . 35 26 Largest 4 | . . 2 4 Hottest 169 | . . 90 169 Shots Fired 121 | . . 62 59 Gun 74 | . . 39 35 Cannon . | . . . . Launcher 47 | . . 23 24 Special . | . . . . Kinetic . | . . . . Thermal 33 | . . 24 9 Explosive 47 | . . 23 24 Electromagnetic 41 | . . 15 26 Robot Hit Streak 6 | . . 6 4 Robot Miss Streak 4 | . . 4 3 Penetration Max . | . . . . Secondary Targets . | . . . . Shots Hit Robots 37 | . . 18 19 Core Hits 60 | . . 21 39 Critical Kills . | . . . . Critical Parts Destroyed . | . . . . Critical Strikes 2 | . . 2 . Burn 1 | . . 1 . Corrupt 1 | . . 1 . Melee Attacks . | . . . . Impact . | . . . . Slashing . | . . . . Piercing . | . . . . Sneak Attacks . | . . . . Combat Hostiles . | . . . . Follow-up Attacks . | . . . . Damage Inflicted 2509 | . . 953 1556 Guns 380 | . . 205 175 Cannons . | . . . . Explosions 2112 | . . 748 1364 Melee . | . . . . Ramming 17 | . . . 17 Kinetic . | . . . . Thermal 389 | . . 240 149 Explosive 1831 | . . 616 1215 Electromagnetic 272 | . . 97 175 Impact . | . . . . Slashing . | . . . . Piercing . | . . . . Highest Corruption 7 | . . 7 . Average Corruption 2 | . . 2 . Corruption Purged . | . . . . Corruption Blocked . | . . . . Effects 14 | . . 14 . Message Errors 2 | . . 2 . Matter Fused 4 | . . 4 . Heat Flow Errors 2 | . . 2 . Energy Discharges 1 | . . 1 . Data Loss (minor) 2 | . . 2 . Data Loss (major) 1 | . . 1 . Alerts 2 | . . 2 . Overload Shots . | . . . . Overflow Damage 98 | . . 75 23 Projectiles . | . . . . Explosions 98 | . . 75 23 Melee . | . . . . Knockbacks . | . . . . Impact . | . . . . Kinetic . | . . . . Secondary . | . . . . Self-Inflicted Damage 267 | . . 180 87 Shots 11 | . . 8 3 Rammed 10 | . . . 10 Targets Rammed 11 | . . . 11 Kicked . | . . . . Crushed 1 | . . . 1 Highest Temperature 367 | . . 219 367 Average Temperature 81 | . . 41 163 Received Heat Transfer 519 | . . 69 450 Effects 4 | . . . 4 Shutdowns 2 | . . . 2 Interference 2 | . . . 2 Siege Activations . | . . . . Martial Activations . | . . . . Shielding Activations . | . . . . Robots Disrupted . | . . . . Combat Hostiles . | . . . . Robots Corrupted . | . . . . Combat Hostiles . | . . . . Parts Fried . | . . . . Impact Corruptions . | . . . . Robots Melted . | . . . . Combat Hostiles . | . . . . Parts Melted . | . . . . Heat Transferred 583 | . . 433 150 Parts Sabotaged . | . . . . Parts Stolen . | . . . . Parts Stripped . | . . . . Power Chain Reactions 2 | . . 1 1 Alert | -11 -10 -9 -8 ------- Run | Yrd Mat Mat Mat Maximum Alert Level 1 | . . 1 1 Low Security (%) 97 | 100 100 85 57 Level 1 2 | . . 14 42 Level 2 . | . . . . Level 3 . | . . . . Level 4 . | . . . . Level 5 . | . . . . High Security . | . . . . Max Security . | . . . . Peak Influence 370 | . . 238 370 Initial 94 | . . . 94 Average 8 | . . 56 181 Influence Increases 1022 | . . 546 476 Destroy 0b10 Robot/C 360 | . . 180 180 Destroy 0b10 Robot/NC 65 | . . 25 40 Destroy Leader 110 | . . 66 44 Successful Hack 5 | . . 5 . Disable Machine 165 | . . 105 60 Destroy Structure 302 | . . 165 137 Lose Combat Pursuer 15 | . . . 15 Influence Decreases 652 | . . 320 332 Entered New Map 132 | . . . 132 Time Decay 390 | . . 270 120 Lost Part 130 | . . 50 80 Squads Dispatched 5 | . . 3 2 Investigation . | . . . . Extermination . | . . . . Reinforcement 4 | . . 3 1 Assault . | . . . . Garrison 1 | . . . 1 Intercept . | . . . . Searches Triggered . | . . . . Construction Impeded 1 | . . 1 . Haulers Reinforced . | . . . . Active Scanning Responses . | . . . . Cargo Convoy Interrupts . | . . . . Stealth | -11 -10 -9 -8 --------- Run | Yrd Mat Mat Mat Distress Signals 4 | . . 1 3 Communications Jammed . | . . . . Distress Signals . | . . . . Times Spotted 28 | . 2 12 14 Peak Tracking Total 4 | . 2 3 4 Tactical Retreats 1 | . . . 1 Traps | -11 -10 -9 -8 ------- Run | Yrd Mat Mat Mat Traps Triggered . | . . . . Indirectly . | . . . . Trap Hack Attempts . | . . . . Triggered . | . . . . Disarmed . | . . . . Reprogrammed . | . . . . Reused . | . . . . Traps Extracted . | . . . . Installed . | . . . . Triggered . | . . . . Machines | -11 -10 -9 -8 ---------- Run | Yrd Mat Mat Mat Machines Disabled 11 | . . 7 4 Max in Single Turn 3 | . . 3 2 Machines Repaired . | . . . . Machines Dismantled . | . . . . Machines Sabotaged . | . . . . Overloaded Fab Kills . | . . . . Hacking | -11 -10 -9 -8 --------- Run | Yrd Mat Mat Mat Machines Accessed 4 | . 2 2 . Terminals 3 | . 2 1 . Fabricators . | . . . . Repair Stations . | . . . . Recycling Units . | . . . . Scanalyzers 1 | . . 1 . Garrison Access . | . . . . Total Hacks 13 | . 5 8 . Successful 9 | . 2 7 . Failed 4 | . 3 1 . Catastrophic . | . . . . Database Lockouts . | . . . . Manual 2 | . 2 . . Terminals 7 | . 5 2 . Fabricators . | . . . . Repair Stations . | . . . . Recycling Units . | . . . . Scanalyzers 6 | . . 6 . Garrison Access . | . . . . Terminal Hacks 3 | . 2 1 . Record 1 | . 1 . . Emergency Access Points 1 | . . 1 . Hauler Manifests 1 | . 1 . . Fabricator Hacks . | . . . . Repair Station Hacks . | . . . . Recycling Unit Hacks . | . . . . Scanalyzer 6 | . . 6 . Insert Component 3 | . . 3 . Analyze 3 | . . 3 . Garrison Access Hacks . | . . . . Unauthorized Hacks . | . . . . Terminals . | . . . . Fabricators . | . . . . Repair Stations . | . . . . Recycling Units . | . . . . Scanalyzers . | . . . . Garrison Access . | . . . . Data Cores Recovered . | . . . . Used . | . . . . Hacking Detections 3 | . 2 1 . Full Trace Events . | . . . . Feedback Events . | . . . . Feedback Blocked . | . . . . Robot Schematics Acquired . | . . . . Robots Built . | . . . . Authchips . | . . . . Time . | . . . . Total Robot Build Rating . | . . . . Part Schematics Acquired 3 | . . 3 . Parts Built . | . . . . Authchips . | . . . . Time . | . . . . Total Part Build Rating . | . . . . Parts Repaired . | . . . . Time . | . . . . Parts Recycled . | . . . . Recycled Matter . | . . . . Retrieved Matter . | . . . . Retrieved Components . | . . . . Parts Scanalyzed 3 | . . 3 . Part Schematics Acquired 3 | . . 3 . Parts Damaged . | . . . . Bothacking | -11 -10 -9 -8 ------------ Run | Yrd Mat Mat Mat Used RIF Installer . | . . . . Robots Hacked . | . . . . Non-combat . | . . . . Combat . | . . . . Robot Hacks Applied . | . . . . Relay Couplers Released . | . . . . Fabnet Peak Effective % . | . . . . Robots Rewired . | . . . . Allies Hacked . | . . . . Hacks Repelled . | . . . . Allies | -11 -10 -9 -8 -------- Run | Yrd Mat Mat Mat Total Allies . | . . . . Largest Group . | . . . . Highest-Rated Group . | . . . . Highest-Rated Ally . | . . . . Total Orders . | . . . . Ally Attacks . | . . . . Total Damage . | . . . . Kills . | . . . . Allies Corrupted . | . . . . Allies Melted . | . . . . Intel | -11 -10 -9 -8 ------- Run | Yrd Mat Mat Mat Active Infowar (turns) 707 | . . 707 . Seismic 707 | . . 707 . Robot Analysis Total . | . . . . Derelict Logs Recovered . | . . . . Drone Launches . | . . . . Drone Recoveries . | . . . . Exploration | -11 -10 -9 -8 ------------- Run | Yrd Mat Mat Mat Turns Passed 11070 | 8968 964 882 256 Spaces Moved 1772 | 1119 248 266 139 Core 929 | 863 . . 66 Treads 69 | . . . 69 Legs 774 | 256 248 266 4 Wheels . | . . . . Hover . | . . . . Flight . | . . . . Fastest Speed 50 | 50 120 120 50 Average Speed 93 | 66 120 174 110 Slowest Speed 260 | 120 120 260 260 Overloaded Moves . | . . . . Propulsion Burnouts . | . . . . Robots Hopped . | . . . . Potential Cave-ins . | . . . . Cave-ins Triggered 1 | . . 1 . Exploration Rate (%) 42 | 95 33 24 17 Regions Visited 3 Branch Regions . Pre-discovered Areas . | . . . . Known Exits Taken . | . . . . Unknown Exits Taken 3 | 1 1 1 . Scrap Searched . | . . . . Spaces Dug . | . . . . Terrain Destroyed 323 | . . 184 139 Melee . | . . . . Projectile . | . . . . AOE 323 | . . 184 139 Terrain Rammed . | . . . . Walls Destroyed . | . . . . Machines Disabled . | . . . . Actions | -11 -10 -9 -8 --------- Run | Yrd Mat Mat Mat Total 11075 | 9345 916 623 191 Wait 9194 | 8215 658 312 9 Move 1769 | 1118 247 265 139 Hop . | . . . . Pick Up 14 | 6 6 2 . Fast Attach 9 | 6 1 1 1 Attach 7 | . . 3 4 Detach 2 | . . 1 1 Swap 1 | . . 1 . Drop 7 | . 4 3 . Fire 61 | . . 35 26 Melee . | . . . . Ram 3 | . . . 3 Kick . | . . . . Crush 8 | . . . 8 Escape Stasis . | . . . . Rewire . | . . . . Trap . | . . . . Miscellaneous . | . . . . Route ------- -11/Scrapyard -10/Materials -9/Materials -8/Materials History --------- Turn | Location | Event 4570 | -11/Scrapyard | Discovered new exit (range 15) 8969 | -11/Scrapyard | Entered Materials 8970 | -10/Materials | Build established: Mutant 9751 | -10/Materials | Discovered new exit (range 11) 9933 | -10/Materials | Entered another Materials area 9933 | -9/Materials | Evolved 2 slots: Utility x2 10640 | -9/Materials | Crushed by falling debris 10689 | -9/Materials | Lost 3 parts (1n2u) 10790 | -9/Materials | Discovered new exit (range 14) 10815 | -9/Materials | Entered another Materials area 10815 | -8/Materials | Evolved 2 slots: Weapon x2 10968 | -8/Materials | Garrison activated, responded to threat 11035 | -8/Materials | Core integrity fell below 50% 11047 | -8/Materials | Lost 8 parts (1p2n1u4w) 11065 | -8/Materials | Core integrity fell below 20% 11071 | -8/Materials | Destroyed by Y-45 Defender with Heavy Assault Rifle Last Messages --------------- 11056_ Acquired 33 matter. 11057_ Acquired 39 matter. 11058_ Acquired 7 matter. 11058_ Acquired 42 matter. 11059_ R-06 Scavenger collects Prototype Energy Gun. 11059_ K-01 Serf collects debris. 11061_ The unstable cave ceiling collapses. 11061_ Y-45 Defender destroyed. 11062_ R-06 Scavenger collects Prototype Energy Gun. 11063_ K-01 Serf collects debris. 11064_ R-06 Scavenger destroyed. 11066_ G-47 Trooper destroyed. 11067_ The unstable cave ceiling collapses. 11067_ K-01 Serf collects debris. 11068_ The unstable cave ceiling collapses. 11069_ R-06 Scavenger collects Particle Gun. 11070_ R-06 Scavenger destroyed. 11070_ K-01 Serf collects debris. Map ----- +----------------------------------------------------+ | ?????????????????????????????????????????????????? | | ?????????????????????????????????????????????????? | | ???????????????????############??????????????????? | | ????????????????? #? """ """ #??????????????????? | | ????????????????? #?# """ """ #??????????????????? | | ?????????????""" #?# """ """ #??????????????????? | | ???????????""""" ??# #??????????????????? | | ??????????? ??# !#??????????????????? | | ????????????"""" ???#* #??????????????????? | | ????????????"""" ???# = #??????????????????? | | ?????????????"""????# #??????????????????? | | ????????????? ????## ###??????????????????? | | ????????######+###### # #????????????????????? | | ????????# #######????##????????? | | ????????# ????????? | | ????????# ######### ???????????? | | ????????### # ####### # T +????????????? | | ????##### #?#### ## #????????????? | | ????# # ### # # ?????????????? | | ????# # # ??????????????? | | ????# # ???????????????? | | ????# # ## %! +#+#????????????????? | | ????#+#### ## ## ######???????????? | | /!??# ## # # #???????????? | | / # # !! = Y ????????? | | / " + @ * ! #??????????? | | # # [ [! ! = ????????? | | ### ## # [ [ ! ????????? | | ??#= ### # k [ % ?????????? | | ???# #### # [= g = ?????????? | | #????# #??### = ! % # ??????????? | | ?????# =] #????### ## [ ??????????? | | ?????# =] #?????# # # ??????????? | | ?????# #?????## # ???????????? | | ?????# #??????## # ???????????? | | ?????#######???????## ! # ????????????? | | ???????????????????# # ????????????? | | ???????????????????## "" # ? ??????????????? | | ???????????????????# """ #??????????????????? | | ???????????????????# " """ #??????????????????? | | ???????????????????#### #######??????????????????? | | ??????????????????????###????????????????????????? | | ?????????????????????????????????????????????????? | | ?????????????????????????????????????????????????? | | ?????????????????????????????????????????????????? | | ?????????????????????????????????????????????????? | | ?????????????????????????????????????????????????? | | ?????????????????????????????????????????????????? | | ?????????????????????????????????????????????????? | | ?????????????????????????????????????????????????? | +----------------------------------------------------+ Best States ------------- Heat Dissipation 31 Energy Generation 10 Energy Capacity 250 Matter Stores 350 Matter Capacity 350 Sight Range 16 Terrain Scan Density 10 Armor Coverage 225 Evasion (%) 55 Recoil Reduction 2 Item Schematics ----------------- EM Pulse Gun | -9/Materials | Scanalyzed Rocket Launcher | -9/Materials | Scanalyzed Grenade Launcher | -9/Materials | Scanalyzed Robot Schematics ------------------ None Fabricated ------------ Nothing Repaired ---------- Nothing Alien Tech Used ----------------- None Achievements -------------- None Challenges ------------ None Game ------ Seed IonThermicNanoactuators Manual? 0 Play Time 00:29:16 Cumulative 3.3 hours Start 2025.08.31 @ 01:36:13 End 2025.08.31 @ 02:05:04 Sessions 1 Manual Loads 0 Difficulty Rogue Special Mode None Game No. 3 Rogue 3 Adventurer 0 Explorer 0 Win Type - Total 0 Types 0/0/0/0/0/0/0/0/0/0 Lore% 0 Gallery% 4 Achievement% 13 Wizard Run 0 Options --------- Layout 1 ASCII 0 Keyboard 1 Movement Numpad Keybinds 0 Fullscreen 1 Font 24/Smallcaps Map View 50x35 Zoom Use 0% Tactical HUD 1 Map Filters NONE Filters NONE Steam 1 RUN: 0bf9715f-506c-44b1-a54d-852f6508ef30